[Event "Icelandic Team-ch Premier 2021-22"]
[Site "Reykjavik"]
[Date "2022.03.06"]
[Round "10.24"]
[White "Thorsteinsson, Erlingur"]
[Black "Johannesson, Ingvar Thor"]
[Result "1/2-1/2"]
[ECO "A61"]
[WhiteElo "2056"]
[BlackElo "2315"]
[Annotator "ChessBase"]
[PlyCount "136"]
[EventDate "2022.03.05"]
[EventType "team-tourn"]
[EventCountry "ISL"]
[SourceTitle "playchess.com"]
[Source "ChessBase"]
[SourceQuality "1"]
[TimeControl "5400+30"]

1. d4 {[%emt 0:03:55]} Nf6 {[%emt 0:02:12]} 2. c4 {[%emt 0:00:07]} c5 {[%emt 0:00:58]} 3. d5 {[%emt 0:00:07]} e6 {[%emt 0:00:17]} 4. Nc3 {[%emt 0:00:11]} exd5 {[%emt 0:00:07]} 5. cxd5 {[%emt 0:00:08]} d6 {[%emt 0:00:05]} 6. Nf3 {[%emt 0:00:45]} g6 {[%emt 0:00:09]} 7. Bf4 {[%emt 0:02:12]} a6 {[%emt 0:00:36]} 8. a4 {[%emt 0:00:07]} Bg7 {[%emt 0:00:05]} 9. h3 {[%emt 0:00:18]} O-O {[%emt 0:01:17]} 10. e3 {[%emt 0:00:28]} Qe7 {[%emt 0:00:49]} 11. Be2 {[%emt 0:00:38]} Nbd7 {[%emt 0:00:11]} 12. O-O {[%emt 0:00:13]} Ne8 {[%emt 0:00:31]} 13. Nd2 {[%emt 0:03:54]} Ne5 {[%emt 0:00:49]} 14. Nc4 {[%emt 0:10:40]} Nxc4 {[%emt 0:08:26]} 15. Bxc4 {[%emt 0:01:45]} Rb8 {[%emt 0:01:43]} 16. Qe2 {[%emt 0:08:07]} Nc7 {[%emt 0:05:47]} 17. Rfe1 {[%emt 0:04:55]} Bd7 {[%emt 0:06:09]} 18. a5 {[%emt 0:02:23]} b5 {[%emt 0:08:40]} 19. axb6 {[%emt 0:00:19]} Rxb6 {[%emt 0:12:08]} 20. e4 {[%emt 0:30:44]} Rfb8 {[%emt 0:07:36]} 21. Ra2 {[%emt 0:00:22]} Be5 {[%emt 0:01:05]} 22. Bxe5 {[%emt 0:01:25]} Qxe5 {[%emt 0:00:34]} 23. Qd2 {[%emt 0:01:31]} g5 {[%emt 0:10:46]} 24. Bf1 {[%emt 0:12:14]} Bb5 {[%emt 0:05:06]} 25. g3 {[%emt 0:03:07]} Bxf1 {[%emt 0:12:05]} 26. Kxf1 {[%emt 0:00:18]} Nb5 {[%emt 0:00:39]} 27. Nxb5 {[%emt 0:02:19]} Rxb5 {[%emt 0:00:06]} 28. Re2 {[%emt 0:00:10]} Rb3 {[%emt 0:04:57]} 29. Kg2 {[%emt 0:04:23]} R8b4 {[%emt 0:01:59]} 30. Kh2 {[%emt 0:00:28]} h6 {[%emt 0:00:24]} 31. f4 {[%emt 0:01:24]} gxf4 {[%emt 0:01:12]} 32. gxf4 {[%emt 0:00:06]} Qh5 {[%emt 0:00:17]} 33. Re3 {[%emt 0:01:32]} Rxe3 {[%emt 0:01:00]} 34. Qxe3 {[%emt 0:00:05]} Qd1 {[%emt 0:00:03]} 35. Qg1+ {[%emt 0:03:12]} Qxg1+ {[%emt 0:00:15]} 36. Kxg1 {[%emt 0:00:03]} Rxe4 {[%emt 0:02:01]} 37. Rxa6 {[%emt 0:00:13]} Rxf4 {[%emt 0:00:10]} 38. Rxd6 {[%emt 0:00:04]} Rd4 {[%emt 0:02:40]} 39. Rxh6 {[%emt 0:00:48]} Rxd5 {[%emt 0:00:30]} 40. Rc6 {[%emt 0:00:10]} Rf5 {[%emt 0:01:08]} 41. Kg2 {[%emt 0:00:12]} Kg7 {[%emt 0:00:04]} 42. Kg3 {[%emt 0:00:18]} f6 {[%emt 0:00:07]} 43. h4 {[%emt 0:00:55]} Kg6 {[%emt 0:02:22]} 44. Kg4 {[%emt 0:00:20]} Rd5 {[%emt 0:00:10]} 45. b3 {[%emt 0:01:27]} Rd4+ {[%emt 0:00:17]} 46. Kg3 {[%emt 0:00:06]} Rd3+ {[%emt 0:00:12]} 47. Kg4 {[%emt 0:00:12]} Rd5 {[%emt 0:00:26]} 48. Rc8 {[%emt 0:00:44]} Rd4+ {[%emt 0:02:02]} 49. Kg3 {[%emt 0:00:06]} Rd3+ {[%emt 0:00:04]} 50. Kg4 {[%emt 0:00:04]} Rxb3 {[%emt 0:00:14]} 51. Rxc5 {[%emt 0:00:07]} Rb4+ {[%emt 0:00:05]} 52. Kg3 {[%emt 0:00:08]} Rb3+ {[%emt 0:01:46]} 53. Kg4 {[%emt 0:00:05]} Rb4+ {[%emt 0:00:03]} 54. Kg3 {[%emt 0:00:06]} Rb6 {[%emt 0:00:01]} 55. Kg4 {[%emt 0:00:11]} Ra6 {[%emt 0:01:29]} 56. Rb5 {[%emt 0:00:11]} Ra1 {[%emt 0:00:41]} 57. Rc5 {[%emt 0:00:33]} Rg1+ {[%emt 0:00:11]} 58. Kf4 {[%emt 0:00:07]} Rh1 {[%emt 0:00:20]} 59. Kg3 {[%emt 0:02:01]} Rg1+ {[%emt 0:01:55]} 60. Kf4 {[%emt 0:00:02]} Rf1+ {[%emt 0:00:16]} 61. Kg3 {[%emt 0:00:45]} Rd1 {[%emt 0:01:02]} 62. Kf4 {[%emt 0:00:34]} Rd4+ {[%emt 0:00:12]} 63. Kg3 {[%emt 0:00:07]} f5 {[%emt 0:00:32]} 64. Ra5 {[%emt 0:01:07]} Rg4+ {[%emt 0:00:22]} 65. Kh3 {[%emt 0:00:05]} Rf4 {[%emt 0:00:25]} 66. Kg3 {[%emt 0:00:22]} Rg4+ {[%emt 0:00:26]} 67. Kh3 {[%emt 0:00:05]} Rf4 {[%emt 0:00:04]} 68. Kg3 {[%emt 0:00:05]} Rg4+ {[%emt 0:00:40]} 1/2-1/2